Workbook

Sheet Tracking
B2: Income and expense tracking
B4: Date | C4: Group | D4: Category | E4: Amount | F4: Account
B5: 2023-04-15 | C5: Other | D5: Reconsiliation | E5: $1,700.00 | F5: Checking
B6: 2023-04-15 | C6: Other | D6: Reconsiliation | E6: $150.00 | F6: Wallet 1
B7: 2023-04-15 | C7: Other | D7: Reconsiliation | E7: $80.00 | F7: Wallet 2
B8: 2023-04-15 | C8: Entertainment | D8: Movies | E8: $-50.00 | F8: Wallet 1
B9: 2023-04-22 | C9: Household | D9: Garbage | E9: $-50.00 | F9: Checking
B10: 2023-04-22 | C10: Income | D10: Salary | E10: $1,300.00 | F10: Checking
B11: 2023-04-27 | C11: Household | D11: Phone | E11: $-80.00 | F11: Checking
B12: 2023-05-05 | C12: Income | D12: Salary | E12: $1,600.00 | F12: Checking
B13: 2023-05-05 | C13: Income | D13: Salary | E13: $1,500.00 | F13: Checking
B14: 2023-05-11 | C14: Household | D14: Electricity | E14: $-120.00 | F14: Checking
B15: 2023-05-16 | C15: Household | D15: Mortgage | E15: $-5,000.00 | F15: Checking
B16: 2023-05-19 | C16: Income | D16: Salary | E16: $1,300.00 | F16: Checking
B17: 2023-05-19 | C17: Income | D17: Salary | E17: $1,300.00 | F17: Checking
B18: 2023-05-19 | C18: Transportation | D18: Car payment | E18: $-150.00 | F18: Checking
B19: 2023-05-30 | C19: Transportation | D19: Fuel | E19: $-25.00 | F19: Checking
B20: 2023-06-01 | C20: Transportation | D20: Fuel | E20: $-50.00 | F20: Checking
B21: 2023-06-03 | C21: Income | D21: Salary | E21: $1,600.00 | F21: Checking
B22: 2023-06-03 | C22: Income | D22: Salary | E22: $1,500.00 | F22: Checking
B23: 2023-06-06 | C23: Transportation | D23: Car insurance | E23: $-50.00 | F23: Checking
B24: 2023-06-06 | C24: Transportation | D24: Car payment | E24: $-350.00 | F24: Checking
B25: 2023-06-06 | C25: Transportation | D25: Car payment | E25: $-300.00 | F25: Checking
B26: 2023-06-16 | C26: Personal | D26: Health/Fitness | E26: $-100.00 | F26: Checking
B27: 2023-06-17 | C27: Income | D27: Salary | E27: $1,300.00 | F27: Checking
B28: 2023-06-17 | C28: Income | D28: Salary | E28: $1,300.00 | F28: Checking
B29: 2023-06-17 | C29: Investments | D29: Brokerage | E29: $-250.00 | F29: Checking
B30: 2023-06-17 | C30: Investments | D30: Brokerage | E30: $250.00 | F30: Brokerage
B31: 2023-06-17 | C31: Investments | D31: Savings | E31: $-250.00 | F31: Checking
B32: 2023-06-17 | C32: Investments | D32: Savings | E32: $250.00 | F32: Savings
B33: 2023-06-19 | C33: Children | D33: Lunch money | E33: $-80.00 | F33: Wallet 2
B34: 2023-06-20 | C34: Food | D34: Dining out | E34: $-75.00 | F34: Checking
B35: 2023-06-21 | C35: Food | D35: Groceries | E35: $-350.00 | F35: Checking
B36: 2023-06-22 | C36: Entertainment | D36: Movies | E36: $-37.00 | F36: Checking
B37: 2023-06-23 | C37: Household | D37: Electricity | E37: $-100.00 | F37: Checking
B38: 2023-06-24 | C38: Household | D38: Phone | E38: $-25.00 | F38: Checking
B39: 2023-06-24 | C39: Household | D39: Phone | E39: $-50.00 | F39: Checking
B40: 2023-06-24 | C40: Household | D40: Mortgage | E40: $-50.00 | F40: Checking
B41: 2023-06-24 | C41: Household | D41: Phone | E41: $-30.00 | F41: Checking
B42: 2023-06-24 | C42: Household | D42: Phone | E42: $-100.00 | F42: Checking
B43: 2023-06-24 | C43: Household | D43: Garbage | E43: $-25.00 | F43: Checking
B44: 2023-06-24 | C44: Household | D44: Water/sewer | E44: $-50.00 | F44: Checking
B45: 2023-06-24 | C45: Household | D45: Electricity | E45: $-100.00 | F45: Checking
B46: 2023-06-24 | C46: Household | D46: Mortgage | E46: $-1,000.00 | F46: Checking
B47: 2023-06-30 | C47: Income | D47: Bonus | E47: $500.00 | F47: Checking
B48: 2023-06-30 | C48: Medical | D48: Insurance | E48: $-500.00 | F48: Checking

Sheet Income & Expense
B2: Monthly income and expense
B4: Group | C4: Category | D4: Planned | E4: Actual | F4: Difference
B5: Income | D5: =SUM(D6:D14) -> $5,700.00 | E5: =SUMPRODUCT(Tracking[Amount], INT(Tracking[Group] = B5), INT(MONTH(Tracking[Date]) = MONTH(TODAY()))) -> $6,200.00 | F5: =E5-D5 -> $500.00
C6: Salary | D6: $5,700.00 | E6: =SUMPRODUCT(Tracking[Amount], INT(Tracking[Category] = C6), INT(MONTH(Tracking[Date]) = MONTH(TODAY()))) -> $5,700.00 | F6: =E6-D6 -> 0
C7: Commission | E7: =SUMPRODUCT(Tracking[Amount], INT(Tracking[Category] = C7), INT(MONTH(Tracking[Date]) = MONTH(TODAY()))) -> 0 | F7: 0
C8: Reimbursement | E8: =SUMPRODUCT(Tracking[Amount], INT(Tracking[Category] = C8), INT(MONTH(Tracking[Date]) = MONTH(TODAY()))) -> 0 | F8: 0
C9: Bonus | E9: =SUMPRODUCT(Tracking[Amount], INT(Tracking[Category] = C9), INT(MONTH(Tracking[Date]) = MONTH(TODAY()))) -> $500.00 | F9: $500.00
C10: Sales | E10: =SUMPRODUCT(Tracking[Amount], INT(Tracking[Category] = C10), INT(MONTH(Tracking[Date]) = MONTH(TODAY()))) -> 0 | F10: 0 | H10: =IF(E10=0,"",C10) ->  | I10: =IF(E10=0,"",E10) -> 
C11: Interest | E11: =SUMPRODUCT(Tracking[Amount], INT(Tracking[Category] = C11), INT(MONTH(Tracking[Date]) = MONTH(TODAY()))) -> 0 | F11: 0
C12: Gains/Losses | E12: =SUMPRODUCT(Tracking[Amount], INT(Tracking[Category] = C12), INT(MONTH(Tracking[Date]) = MONTH(TODAY()))) -> 0 | F12: =E12-D12 -> 0
C13: Gifts | E13: =SUMPRODUCT(Tracking[Amount], INT(Tracking[Category] = C13), INT(MONTH(Tracking[Date]) = MONTH(TODAY()))) -> 0 | F13: 0
C14: Pension | E14: =SUMPRODUCT(Tracking[Amount], INT(Tracking[Category] = C14), INT(MONTH(Tracking[Date]) = MONTH(TODAY()))) -> 0 | F14: 0
B15: Household | D15: =SUM(D16:D23) -> $-1,475.00 | E15: =SUMPRODUCT(Tracking[Amount], INT(Tracking[Group] = B15), INT(MONTH(Tracking[Date]) = MONTH(TODAY()))) -> $-1,530.00 | F15: $-55.00
C16: Mortgage | D16: $-1,000.00 | E16: =SUMPRODUCT(Tracking[Amount], INT(Tracking[Category] = C16), INT(MONTH(Tracking[Date]) = MONTH(TODAY()))) -> $-1,050.00 | F16: $-50.00
C17: Rent | E17: =SUMPRODUCT(Tracking[Amount], INT(Tracking[Category] = C17), INT(MONTH(Tracking[Date]) = MONTH(TODAY()))) -> 0 | F17: 0
C18: Electricity | D18: $-200.00 | E18: =SUMPRODUCT(Tracking[Amount], INT(Tracking[Category] = C18), INT(MONTH(Tracking[Date]) = MONTH(TODAY()))) -> $-200.00 | F18: 0
C19: Water/Sewer | D19: $-50.00 | E19: =SUMPRODUCT(Tracking[Amount], INT(Tracking[Category] = C19), INT(MONTH(Tracking[Date]) = MONTH(TODAY()))) -> $-50.00 | F19: 0
C20: Garbage | D20: $-25.00 | E20: =SUMPRODUCT(Tracking[Amount], INT(Tracking[Category] = C20), INT(MONTH(Tracking[Date]) = MONTH(TODAY()))) -> $-25.00 | F20: 0
C21: Phone | D21: $-200.00 | E21: =SUMPRODUCT(Tracking[Amount], INT(Tracking[Category] = C21), INT(MONTH(Tracking[Date]) = MONTH(TODAY()))) -> $-205.00 | F21: $-5.00
C22: Furniture | E22: =SUMPRODUCT(Tracking[Amount], INT(Tracking[Category] = C22), INT(MONTH(Tracking[Date]) = MONTH(TODAY()))) -> 0 | F22: 0
C23: Cleaning | E23: =SUMPRODUCT(Tracking[Amount], INT(Tracking[Category] = C23), INT(MONTH(Tracking[Date]) = MONTH(TODAY()))) -> 0 | F23: 0
B24: Food | D24: $-500.00 | E24: =SUMPRODUCT(Tracking[Amount], INT(Tracking[Group] = B24), INT(MONTH(Tracking[Date]) = MONTH(TODAY()))) -> $-425.00 | F24: $75.00
C25: Groceries | E25: =SUMPRODUCT(Tracking[Amount], INT(Tracking[Category] = C25), INT(MONTH(Tracking[Date]) = MONTH(TODAY()))) -> $-350.00 | F25: $-350.00
C26: Dining out | E26: =SUMPRODUCT(Tracking[Amount], INT(Tracking[Category] = C26), INT(MONTH(Tracking[Date]) = MONTH(TODAY()))) -> $-75.00 | F26: $-75.00
B27: Personal | D27: $-100.00 | E27: =SUMPRODUCT(Tracking[Amount], INT(Tracking[Group] = B27), INT(MONTH(Tracking[Date]) = MONTH(TODAY()))) -> $-100.00 | F27: 0
C28: Clothing | E28: =SUMPRODUCT(Tracking[Amount], INT(Tracking[Category] = C28), INT(MONTH(Tracking[Date]) = MONTH(TODAY()))) -> 0 | F28: 0
C29: Pesonal care | E29: =SUMPRODUCT(Tracking[Amount], INT(Tracking[Category] = C29), INT(MONTH(Tracking[Date]) = MONTH(TODAY()))) -> 0 | F29: 0
C30: Health/Fitness | E30: =SUMPRODUCT(Tracking[Amount], INT(Tracking[Category] = C30), INT(MONTH(Tracking[Date]) = MONTH(TODAY()))) -> $-100.00 | F30: $-100.00
C31: Shopping | E31: =SUMPRODUCT(Tracking[Amount], INT(Tracking[Category] = C31), INT(MONTH(Tracking[Date]) = MONTH(TODAY()))) -> 0 | F31: 0
B32: Children | D32: $-100.00 | E32: =SUMPRODUCT(Tracking[Amount], INT(Tracking[Group] = B32), INT(MONTH(Tracking[Date]) = MONTH(TODAY()))) -> $-80.00 | F32: $20.00
C33: Clothes | E33: =SUMPRODUCT(Tracking[Amount], INT(Tracking[Category] = C33), INT(MONTH(Tracking[Date]) = MONTH(TODAY()))) -> 0 | F33: 0
C34: Toys/Games | E34: =SUMPRODUCT(Tracking[Amount], INT(Tracking[Category] = C34), INT(MONTH(Tracking[Date]) = MONTH(TODAY()))) -> 0 | F34: 0
C35: Lunch money | E35: =SUMPRODUCT(Tracking[Amount], INT(Tracking[Category] = C35), INT(MONTH(Tracking[Date]) = MONTH(TODAY()))) -> $-80.00 | F35: $-80.00
C36: Duties/Fees | E36: =SUMPRODUCT(Tracking[Amount], INT(Tracking[Category] = C36), INT(MONTH(Tracking[Date]) = MONTH(TODAY()))) -> 0 | F36: 0
B37: Medical | D37: =SUM(D38:D40) -> 0 | E37: =SUMPRODUCT(Tracking[Amount], INT(Tracking[Group] = B37), INT(MONTH(Tracking[Date]) = MONTH(TODAY()))) -> $-500.00 | F37: $-500.00
C38: Doctor/Clinic | E38: =SUMPRODUCT(Tracking[Amount], INT(Tracking[Category] = C38), INT(MONTH(Tracking[Date]) = MONTH(TODAY()))) -> 0 | F38: 0
C39: Dentist | E39: =SUMPRODUCT(Tracking[Amount], INT(Tracking[Category] = C39), INT(MONTH(Tracking[Date]) = MONTH(TODAY()))) -> 0 | F39: 0
C40: Insurance | E40: =SUMPRODUCT(Tracking[Amount], INT(Tracking[Category] = C40), INT(MONTH(Tracking[Date]) = MONTH(TODAY()))) -> $-500.00 | F40: $-500.00
B41: Transportation | D41: $-1,000.00 | E41: =SUMPRODUCT(Tracking[Amount], INT(Tracking[Group] = B41), INT(MONTH(Tracking[Date]) = MONTH(TODAY()))) -> $-750.00 | F41: $250.00
C42: Car payment | E42: =SUMPRODUCT(Tracking[Amount], INT(Tracking[Category] = C42), INT(MONTH(Tracking[Date]) = MONTH(TODAY()))) -> $-650.00 | F42: $-650.00
C43: Car insurance | E43: =SUMPRODUCT(Tracking[Amount], INT(Tracking[Category] = C43), INT(MONTH(Tracking[Date]) = MONTH(TODAY()))) -> $-50.00 | F43: $-50.00
C44: Registration | E44: =SUMPRODUCT(Tracking[Amount], INT(Tracking[Category] = C44), INT(MONTH(Tracking[Date]) = MONTH(TODAY()))) -> 0 | F44: 0
C45: Fuel | E45: =SUMPRODUCT(Tracking[Amount], INT(Tracking[Category] = C45), INT(MONTH(Tracking[Date]) = MONTH(TODAY()))) -> $-50.00 | F45: $-50.00
B46: Entertainment | D46: $-100.00 | E46: =SUMPRODUCT(Tracking[Amount], INT(Tracking[Group] = B46), INT(MONTH(Tracking[Date]) = MONTH(TODAY()))) -> $-37.00 | F46: $63.00
C47: Movies | E47: =SUMPRODUCT(Tracking[Amount], INT(Tracking[Category] = C47), INT(MONTH(Tracking[Date]) = MONTH(TODAY()))) -> $-37.00 | F47: $-37.00
C48: Music | E48: =SUMPRODUCT(Tracking[Amount], INT(Tracking[Category] = C48), INT(MONTH(Tracking[Date]) = MONTH(TODAY()))) -> 0 | F48: 0 | G48: `
C49: Concerts | E49: =SUMPRODUCT(Tracking[Amount], INT(Tracking[Category] = C49), INT(MONTH(Tracking[Date]) = MONTH(TODAY()))) -> 0 | F49: 0
C50: Games | E50: =SUMPRODUCT(Tracking[Amount], INT(Tracking[Category] = C50), INT(MONTH(Tracking[Date]) = MONTH(TODAY()))) -> 0 | F50: 0
B51: Donations | D51: =SUM(D52:D53) -> 0 | E51: =SUMPRODUCT(Tracking[Amount], INT(Tracking[Group] = B51), INT(MONTH(Tracking[Date]) = MONTH(TODAY()))) -> 0 | F51: 0
C52: Charity | E52: =SUMPRODUCT(Tracking[Amount], INT(Tracking[Category] = C52), INT(MONTH(Tracking[Date]) = MONTH(TODAY()))) -> 0 | F52: 0
C53: Gifts | E53: =SUMPRODUCT(Tracking[Amount], INT(Tracking[Category] = C53), INT(MONTH(Tracking[Date]) = MONTH(TODAY()))) -> 0 | F53: 0
B54: Investments | D54: =SUM(D55:D59) -> 0 | E54: =SUMPRODUCT(Tracking[Amount], INT(Tracking[Group] = B54), INT(MONTH(Tracking[Date]) = MONTH(TODAY()))) -> 0 | F54: 0
C55: IRA | E55: =SUMPRODUCT(Tracking[Amount], INT(Tracking[Category] = C55), INT(MONTH(Tracking[Date]) = MONTH(TODAY()))) -> 0 | F55: 0
C56: Savings | E56: =SUMPRODUCT(Tracking[Amount], INT(Tracking[Category] = C56), INT(MONTH(Tracking[Date]) = MONTH(TODAY()))) -> 0 | F56: 0
C57: Checking | E57: =SUMPRODUCT(Tracking[Amount], INT(Tracking[Category] = C57), INT(MONTH(Tracking[Date]) = MONTH(TODAY()))) -> 0 | F57: 0
C58: Retirement | E58: =SUMPRODUCT(Tracking[Amount], INT(Tracking[Category] = C58), INT(MONTH(Tracking[Date]) = MONTH(TODAY()))) -> 0 | F58: 0
C59: Brokerage | E59: =SUMPRODUCT(Tracking[Amount], INT(Tracking[Category] = C59), INT(MONTH(Tracking[Date]) = MONTH(TODAY()))) -> 0 | F59: 0
B60: Taxes/Legal | D60: =SUM(D61:D65) -> 0 | E60: =SUMPRODUCT(Tracking[Amount], INT(Tracking[Group] = B60), INT(MONTH(Tracking[Date]) = MONTH(TODAY()))) -> 0 | F60: 0
C61: Federal | E61: =SUMPRODUCT(Tracking[Amount], INT(Tracking[Category] = C61), INT(MONTH(Tracking[Date]) = MONTH(TODAY()))) -> 0 | F61: 0
C62: State | E62: =SUMPRODUCT(Tracking[Amount], INT(Tracking[Category] = C62), INT(MONTH(Tracking[Date]) = MONTH(TODAY()))) -> 0 | F62: 0
C63: Local | E63: =SUMPRODUCT(Tracking[Amount], INT(Tracking[Category] = C63), INT(MONTH(Tracking[Date]) = MONTH(TODAY()))) -> 0 | F63: 0
C64: Other | E64: =SUMPRODUCT(Tracking[Amount], INT(Tracking[Category] = C64), INT(MONTH(Tracking[Date]) = MONTH(TODAY()))) -> 0 | F64: 0
C65: Attorney | E65: =SUMPRODUCT(Tracking[Amount], INT(Tracking[Category] = C65), INT(MONTH(Tracking[Date]) = MONTH(TODAY()))) -> 0 | F65: 0
B66: Other | E66: =SUMPRODUCT(Tracking[Amount], INT(Tracking[Group] = B66), INT(MONTH(Tracking[Date]) = MONTH(TODAY()))) -> 0 | F66: 0
C67: Reconsiliation | E67: =SUMPRODUCT(Tracking[Amount], INT(Tracking[Category] = C67), INT(MONTH(Tracking[Date]) = MONTH(TODAY()))) -> 0 | F67: 0
B68: Total | D68: =SUMIF($B5:$B67,"<>",D5:D67) -> $2,425.00 | E68: =SUMIF($B5:$B67,"<>",E5:E67) -> $2,778.00 | F68: =E68-D68 -> $353.00

Sheet Accounts
B2: Money, bank and investment
B4: Type | C4: Account | D4: Balance
B5: Money | D5: =SUM(D6:D7) -> $100.00
C6: Wallet 1 | D6: =SUMIF(Tracking[Account],C6,Tracking[Amount]) -> $100.00
C7: Wallet 2 | D7: =SUMIF(Tracking[Account],C7,Tracking[Amount]) -> 0
B8: Bank | D8: =SUM(D9:D13) -> $5,883.00
C9: Checking | D9: =SUMIF(Tracking[Account],C9,Tracking[Amount]) -> $5,633.00
C10: Savings | D10: =SUMIF(Tracking[Account],C10,Tracking[Amount]) -> $250.00
C11: CD 1 | D11: =SUMIF(Tracking[Account],C11,Tracking[Amount]) -> 0
C12: CD 2 | D12: =SUMIF(Tracking[Account],C12,Tracking[Amount]) -> 0
C13: CD 3 | D13: =SUMIF(Tracking[Account],C13,Tracking[Amount]) -> 0
B14: Debt | D14: =SUM(D15:D16) -> 0
C15: Credit Card | D15: =SUMIF(Tracking[Account],C15,Tracking[Amount]) -> 0
C16: Mortgage | D16: =SUMIF(Tracking[Account],C16,Tracking[Amount]) -> 0
B17: Investment | D17: =SUM(D18:D20) -> $250.00
C18: Brokerage | D18: =SUMIF(Tracking[Account],C18,Tracking[Amount]) -> $250.00
C19: IRA | D19: =SUMIF(Tracking[Account],C19,Tracking[Amount]) -> 0
C20: 401(k) | D20: =SUMIF(Tracking[Account],C20,Tracking[Amount]) -> 0
B21: Total | D21: =G12 -> 0

Sheet Data Lists
A2: Accounts | B2: Groups
A3: =_xlfn.TOCOL(OFFSET(AccountsTable, 0, 1, , 1), 1) -> Wallet 1 | B3: =GroupList -> Income
A4: Wallet 2 | B4: Household
A5: Checking | B5: Food
A6: Savings | B6: Personal
A7: CD 1 | B7: Children
A8: CD 2 | B8: Medical
A9: CD 3 | B9: Transportation
A10: Credit Card | B10: Entertainment
A11: Mortgage | B11: Donations
A12: Brokerage | B12: Investments
A13: IRA | B13: Taxes/Legal
A14: 401(k) | B14: Other
